bitfinex-derivatives/quotes_SOLF0:USTF0_20250606
["timestamp","ask_amount","ask_price","bid_price","bid_amount"]
[1749179692604,35.20505069,146.1,146.08,0.04561982]
[1749179693703,42.04715069,146.1,146.08,0.04561982]
[1749179697406,5.76981911,146.09,146.08,0.04561982]
[1749179699407,12.61231911,146.09,146.08,0.04561982]
[1749179700403,15.38093492,146.09,146.08,0.04561982]
[1749179700610,13.02094565,146.09,146.03,6.8452]
[1749179700909,13.02094565,146.08,146.02,4.91141774]
[1749179701114,5.76981911,146.07,146.02,4.91141774]
[1749179701408,46.42648892,146.1,146.04,6.8445]
[1749179701609,0.05083031,146.08,146.06,0.04530743]
[1749179701806,5.77717238,146.07,146.06,0.04530743]
[1749179702208,6.89423031,146.08,146.06,0.04530743]
[1749179702409,5.78957287,146.07,146.06,0.04530743]
[1749179703110,13.07198873,146.07,146.06,0.04530743]
[1749179704112,17.13746247,146.07,146.06,0.04530743]
[1749179704310,19.91534839,146.07,146.06,0.04530743]
[1749179705014,13.07184839,146.07,146.06,0.04530743]
[1749179705613,13.07705613,146.07,146.06,6.88920743]
[1749179705806,13.07705613,146.07,146.06,0.04530743]
[1749179706010,8.56745879,146.07,146.06,0.04530743]
[1749179706517,5.78957287,146.07,146.06,6.88920743]
[1749179706713,13.07655604,146.07,146.06,6.88920743]
[1749179707017,8.5669598,146.07,146.06,6.88920743]
[1749179707316,5.78957287,146.07,146.06,6.88920743]
[1749179708522,5.78957287,146.07,146.06,0.04530743]
[1749179708917,10.2993005,146.07,146.06,0.04530743]
[1749179709122,10.29930691,146.07,146.06,0.04530743]
[1749179710019,10.29930691,146.07,146.06,6.88920743]
[1749179710220,10.29928954,146.07,146.06,6.88920743]
[1749179710420,10.29801682,146.07,146.06,0.04530743]
[1749179711018,10.29805822,146.07,146.06,0.04530743]
[1749179711220,5.78957287,146.07,146.06,0.04530743]
[1749179711416,10.2980722,146.07,146.06,0.04530743]
[1749179712126,16.65314338,146.07,146.06,0.04530743]
[1749179712327,13.07554753,146.07,146.06,0.04530743]
[1749179712823,19.91919192,146.07,146.06,0.04530743]
[1749179713028,13.07569192,146.07,146.06,0.04530743]
[1749179713426,13.07546765,146.07,146.06,0.04530743]
[1749179713727,13.07545351,146.07,146.06,0.04530743]
[1749179714728,13.07411158,146.07,146.06,0.04530743]
[1749179716329,8.56680979,146.07,146.06,0.04530743]
[1749179716526,13.07393747,146.07,146.06,0.04530743]
[1749179716727,13.07395844,146.07,146.06,0.04530743]
[1749179717429,10.29672152,146.07,146.06,0.04530743]
[1749179718030,5.78957287,146.07,146.06,0.04530743]
[1749179721229,5.78957287,146.07,146.06,3.19337276]
[1749179722729,8.56646036,146.07,146.06,0.04530743]
[1749179722930,13.06220536,146.07,146.06,0.04530743]
[1749179723433,13.06256152,146.07,146.06,0.04530743]
[1749179724128,19.90606152,146.07,146.06,0.04530743]
[1749179724433,17.12881787,146.07,146.06,0.04530743]
[1749179724633,19.90600615,146.07,146.06,0.04530743]
[1749179725028,19.90600615,146.07,146.06,3.19337276]
[1749179725234,5.78957287,146.07,146.06,10.03727276]
[1749179727235,5.78957287,146.07,146.06,6.88920743]
[1749179727427,0.05083031,146.08,146.07,6.8435]
[1749179727626,8.58079592,146.08,146.07,6.8435]
[1749179728025,8.58066757,146.08,146.07,6.8435]
[1749179728933,0.05083031,146.08,146.07,11.76142181]
[1749179729524,5.80775494,146.08,146.06,0.04530743]
[1749179729727,8.53330349,146.07,146.06,0.04530743]
[1749179729933,8.53333695,146.07,146.06,0.04530743]
[1749179730329,10.26515412,146.07,146.06,0.04530743]
[1749179730835,21.61649471,146.07,146.06,0.04530743]
[1749179731333,21.61649451,146.07,146.06,0.04530743]
[1749179731931,14.77299451,146.07,146.06,0.04530743]
[1749179732832,14.7641821,146.07,146.06,0.04530743]
[1749179733030,14.76416368,146.07,146.06,0.04530743]
[1749179733230,14.76416324,146.07,146.06,0.04530743]
[1749179733735,10.26495967,146.07,146.06,0.04530743]
[1749179734335,10.26495967,146.07,146.06,11.80712924]
[1749179736531,10.26495967,146.07,146.06,0.04530743]
[1749179738131,10.26495967,146.07,146.06,6.88920743]
[1749179741935,4.50803504,146.07,146.06,6.88920743]
[1749179742143,41.47507118,146.14,146.06,4.95987022]
[1749179742339,41.47507118,146.14,146.09,4.91454502]
[1749179742527,41.47507118,146.14,146.06,2.2033]
[1749179742732,41.47507118,146.14,146.08,4.91454502]
[1749179743136,0.05004359,146.12,146.1,0.05229087]
[1749179743641,0.05004359,146.12,146.1,4.96683589]
[1749179743837,0.05004359,146.12,146.1,0.05229087]
[1749179744540,0.05004359,146.12,146.1,6.89399087]
[1749179744729,0.05004359,146.12,146.11,4.91454502]
[1749179745235,0.05004359,146.12,146.11,11.75614502]
[1749179745634,0.05004359,146.12,146.1,0.05229087]
[1749179746433,0.05004359,146.12,146.11,4.91454502]
[1749179746841,0.05004359,146.12,146.1,6.89419087]
[1749179747137,0.05004359,146.12,146.11,4.91454502]
[1749179747542,0.05004359,146.12,146.1,0.05229087]
[1749179747742,0.05004359,146.12,146.1,4.96683589]
[1749179748340,0.05004359,146.12,146.1,11.80883589]
[1749179748532,0.05004359,146.12,146.1,4.96683589]
[1749179748738,0.05004359,146.12,146.1,0.05229087]
[1749179754145,5.72505232,146.11,146.1,0.05229087]
[1749179756552,12.56665232,146.11,146.1,0.05229087]
[1749179758747,5.72505232,146.11,146.1,0.05229087]
[1749179760454,0.05004359,146.12,146.1,0.05229087]
[1749179760643,0.05004359,146.12,146.1,6.89409087]
[1749179761555,0.05004359,146.12,146.11,6.8416]
[1749179761855,0.05004359,146.12,146.11,11.75614502]
[1749179762844,0.05004359,146.12,146.11,6.8416]
[1749179763050,0.05004359,146.12,146.1,6.89419087]
[1749179763653,0.05004359,146.12,146.11,6.8416]
[1749179777172,0.05004359,146.12,146.11,9.98716263]
[1749179778267,0.05004359,146.12,146.11,3.14556263]
[1749179781767,0.05004359,146.12,146.11,6.8416]
[1749179782073,0.05004359,146.12,146.11,9.98716263]
[1749179782468,0.05004359,146.12,146.11,3.14556263]
[1749179783374,0.05004359,146.12,146.1,14.7278535]
[1749179783673,0.05004359,146.12,146.11,6.8416]
[1749179785072,0.05004359,146.12,146.11,9.98716263]
[1749179786978,5.79413231,146.12,146.11,9.98716263]
[1749179787276,0.05004359,146.12,146.11,6.8416]
[1749179787476,0.05004359,146.12,146.11,9.98716263]
[1749179792879,0.05004359,146.12,146.1,11.58229087]
[1749179792880,53.60057607,146.12,146.1,11.58229087]
[1749179793078,8.89629288,146.11,146.1,11.58229087]
[1749179793277,13.02171896,146.11,146.1,11.58229087]
[1749179793773,13.02171896,146.11,146.1,14.72999433]
[1749179793977,0.05004359,146.12,146.1,21.57209433]
[1749179794173,0.05004359,146.12,146.11,3.14770346]
[1749179795288,0.05004359,146.12,146.11,4.91439948]
[1749179795582,0.05004359,146.12,146.11,11.75599948]
[1749179803274,4.359e-05,146.12,146.11,11.75599948]
[1749179803479,41.85507118,146.18,146.11,7.19739948]
[1749179803674,41.85507118,146.18,146.13,4.91439948]
[1749179803675,13.0578387,146.17,146.13,4.91439948]
[1749179803877,5.75914309,146.16,146.13,4.91439948]
[1749179804081,35.5,146.18,146.13,4.91439948]
[1749179804281,8.56260686,146.17,146.13,4.91439948]
[1749179804481,0.0502726,146.16,146.14,0.04893277]
[1749179805487,0.0502726,146.16,146.15,6.8398]
[1749179807685,0.0502726,146.16,146.15,11.75419948]
[1749179808793,36.16,146.21,146.17,6.8384]
[1749179808992,8.48559404,146.2,146.17,11.75279948]
[1749179809285,8.48559404,146.2,146.13,36.16]
[1749179809286,36.16,146.21,146.19,4.91439948]
[1749179809486,6.8362,146.23,146.19,11.75199948]
[1749179809793,8.5317517,146.22,146.2,0.04820791]
[1749179809991,0.05046953,146.22,146.2,0.04820791]
[1749179812292,0.05046953,146.22,146.2,6.88560791]
[1749179815396,6.35507118,146.27,146.2,0.04820791]
[1749179815695,4.91439948,146.24,146.2,0.04820791]
[1749179815900,2.81716642,146.23,146.2,0.04820791]
[1749179816096,4.91439948,146.24,146.21,7.43]
[1749179816389,15.14659028,146.24,146.21,14.2669]
[1749179816584,9.48478328,146.24,146.21,7.43]
[1749179816786,4.96243486,146.24,146.21,7.43]
[1749179816987,9.48478328,146.24,146.21,7.43]
[1749179817296,0.04803538,146.24,146.22,6.8362]
[1749179817495,5.70972131,146.24,146.22,6.8362]
[1749179817701,0.04803538,146.24,146.22,6.8362]
[1749179817894,5.70972131,146.24,146.22,6.8362]
[1749179818094,0.04803538,146.24,146.22,6.8362]
[1749179818297,5.70972131,146.24,146.22,6.8362]
[1749179819093,8.52881868,146.24,146.22,6.8362]
[1749179819293,0.04803538,146.24,146.22,6.8362]
[1749179820297,0.04803538,146.24,146.23,6.836]
[1749179820697,0.04803538,146.24,146.23,11.75039948]
[1749179822899,0.04803538,146.24,146.23,6.836]
[1749179823295,0.04803538,146.24,146.23,11.75039948]
[1749179823499,0.04803538,146.24,146.22,6.8363]
[1749179824697,0.04803538,146.24,146.21,12.34439948]
[1749179824907,0.04803538,146.24,146.21,7.43]
[1749179825204,2.81770291,146.23,146.21,7.43]
[1749179825401,42.9765,146.22,146.21,7.43]
[1749179825801,36.14,146.22,146.21,7.43]
[1749179827704,42.9765,146.22,146.21,7.43]
[1749179827907,36.14,146.22,146.21,7.43]
[1749179829397,36.14,146.22,146.21,19.18139948]
[1749179829706,36.14,146.23,146.21,12.34439948]
[1749179830104,36.14,146.23,146.22,6.8365]
[1749179830706,36.14,146.23,146.21,7.43]
[1749179831708,42.9761,146.23,146.21,7.43]
[1749179833609,36.14,146.23,146.21,7.43]
[1749179834210,36.14,146.23,146.2,6.88550791]
[1749179835108,36.14,146.23,146.21,6.837]
[1749179835803,0.04803538,146.24,146.21,4.91439948]
[1749179836004,0.04803538,146.24,146.23,4.91439948]
[1749179837803,0.04803538,146.24,146.23,11.75039948]
[1749179841612,35.62,146.28,146.25,6.8347]
[1749179841814,35.62,146.28,146.26,4.91439948]
[1749179842411,35.62,146.29,146.26,4.91439948]
[1749179842716,0.04811002,146.29,146.28,4.91439948]
[1749179843613,0.04811002,146.29,146.28,11.74779948]
[1749179843808,35.62,146.3,146.28,4.91439948]
[1749179844004,35.62,146.32,146.28,4.91439948]
[1749179844206,35.62,146.32,146.31,4.91439948]
[1749179845215,35.62,146.32,146.3,0.04622941]
[1749179845617,6.8323,146.31,146.3,0.04622941]
[1749179845814,8.48866355,146.31,146.27,10.67]
[1749179846008,5.66604079,146.3,146.27,10.67]
[1749179846215,6.8337,146.28,146.27,10.67]
[1749179846514,42.4537,146.28,146.27,10.67]
[1749179847321,48.12628526,146.28,146.27,10.67]
[1749179847617,50.96804543,146.28,146.27,10.67]
[1749179848316,48.12628526,146.28,146.27,10.67]
[1749179848518,50.96809622,146.28,146.27,10.67]
[1749179848918,50.96816369,146.28,146.27,10.67]
[1749179849114,50.9681698,146.28,146.27,10.67]
[1749179849713,50.97065374,146.28,146.27,10.67]
[1749179850217,55.51357467,146.28,146.27,10.67]
[1749179850414,52.66911046,146.28,146.27,10.67]
[1749179850616,55.51364654,146.28,146.27,10.67]
[1749179851620,55.52218062,146.28,146.27,10.67]
[1749179851921,55.52312286,146.28,146.27,10.67]
[1749179852122,55.50760294,146.28,146.27,10.67]
[1749179852421,55.50759563,146.28,146.27,10.67]
[1749179853518,48.12628526,146.28,146.27,10.67]
[1749179853724,55.49603814,146.28,146.27,10.67]
[1749179853923,48.12628526,146.28,146.27,10.67]
[1749179854119,50.95560023,146.28,146.27,10.67]
[1749179854323,55.49791833,146.28,146.27,10.67]
[1749179855225,55.49866889,146.28,146.27,10.67]
[1749179855624,50.95560023,146.28,146.27,10.67]
[1749179855828,55.50035348,146.28,146.27,10.67]
[1749179856726,50.95728675,146.28,146.27,10.67]
[1749179857028,52.66944077,146.28,146.27,10.67]
[1749179857323,50.95710427,146.28,146.27,10.67]
[1749179857720,52.66922929,146.28,146.27,10.67]
[1749179858024,55.50056741,146.28,146.27,10.67]
[1749179859029,55.50401572,146.28,146.27,10.67]
[1749179859329,55.50397602,146.28,146.27,10.67]
[1749179859529,55.50397233,146.28,146.27,10.67]
[1749179859931,48.67027233,146.28,146.27,10.67]
[1749179860329,48.67061213,146.28,146.27,10.67]
[1749179860531,48.671239,146.28,146.27,10.67]
[1749179860731,45.83704308,146.28,146.27,10.67]
[1749179860929,48.6713253,146.28,146.27,10.67]
[1749179861131,35.62,146.28,146.27,10.67]
[1749179861336,41.28226272,146.28,146.27,10.67]
[1749179861537,35.62,146.28,146.27,17.5042]
[1749179862237,0.05252043,146.29,146.28,6.8337]
[1749179863337,0.05252043,146.29,146.28,11.74809948]
[1749179866534,35.46,146.34,146.28,4.91439948]
[1749179866731,35.46,146.34,146.31,4.91439948]
[1749179867229,35.46,146.34,146.31,15.35439948]
[1749179867431,35.5069418,146.34,146.31,15.40083969]
[1749179867632,35.5069418,146.34,146.33,4.91439948]
[1749179867838,35.5069418,146.34,146.33,11.74579948]
[1749179868537,35.5069418,146.34,146.33,6.8314]
[1749179869043,35.5069418,146.34,146.32,6.8317]
[1749179869440,35.5069418,146.34,146.31,15.40083969]
[1749179870240,35.5069418,146.34,146.33,6.8314]
[1749179870540,35.5069418,146.34,146.31,10.48644021]
[1749179870737,35.5069418,146.34,146.31,17.31844021]
[1749179872239,35.5069418,146.34,146.32,6.8318]
[1749179873239,35.5069418,146.34,146.33,6.8314]
[1749179874331,35.5069418,146.34,146.32,6.8317]
[1749179875339,35.5069418,146.34,146.31,10.48644021]
[1749179875538,8.51679292,146.33,146.31,10.48644021]
[1749179875740,5.66158791,146.33,146.31,10.48644021]
[1749179876239,6.8318,146.32,146.31,10.48644021]
[1749179876639,12.49479802,146.32,146.31,10.48644021]
[1749179877039,19.94527103,146.32,146.31,10.48644021]
[1749179877240,15.35022077,146.32,146.31,10.48644021]
[1749179877439,19.94874644,146.32,146.31,10.48644021]
[1749179877744,15.35201118,146.32,146.31,10.48644021]
[1749179878044,19.95261474,146.32,146.31,0.18361631]
[1749179878246,19.95261474,146.32,146.31,0.04644021]
[1749179878844,15.35201316,146.32,146.31,0.04644021]
[1749179879142,19.95371636,146.32,146.31,0.04644021]
[1749179879338,17.09650122,146.32,146.31,0.04644021]
[1749179879545,15.34815125,146.32,146.31,0.04644021]
[1749179879738,19.93100857,146.32,146.31,0.04644021]
[1749179880835,19.92683614,146.32,146.31,0.04644021]
[1749179881038,17.07364194,146.32,146.31,0.04644021]
[1749179881237,15.34799302,146.32,146.31,0.04644021]
[1749179881533,19.92683694,146.32,146.31,0.04644021]
[1749179881734,19.92687825,146.32,146.31,0.04644021]
[1749179882339,19.92866372,146.32,146.31,0.04644021]
[1749179882539,19.92917573,146.32,146.31,0.04644021]
[1749179882736,17.07502603,146.32,146.31,0.04644021]
[1749179883048,19.92850993,146.32,146.31,0.04644021]
[1749179883342,17.07501631,146.32,146.31,0.04644021]
[1749179883543,19.92844036,146.32,146.31,0.04644021]
[1749179884444,15.33591675,146.32,146.31,0.04644021]
[1749179884642,19.90581291,146.32,146.31,0.04644021]
[1749179884849,12.49479802,146.32,146.31,0.04644021]
[1749179885347,19.90567833,146.32,146.31,0.04644021]
[1749179885847,26.26396985,146.32,146.31,0.04644021]
[1749179886246,26.25407184,146.32,146.31,0.04644021]
[1749179886649,6.8336,146.28,146.27,10.67]
[1749179886846,50.77761591,146.28,146.27,10.67]
[1749179887041,55.33747836,146.28,146.27,10.67]
[1749179888150,55.33374076,146.28,146.27,10.67]
[1749179888350,50.77445593,146.28,146.27,10.67]
[1749179888553,47.93380272,146.28,146.27,10.67]
[1749179888753,55.33382819,146.28,146.27,10.67]
[1749179888953,52.49310199,146.28,146.27,10.67]
[1749179889253,55.3338282,146.28,146.27,10.67]
[1749179889848,55.32197922,146.28,146.27,10.67]
[1749179890049,55.32195639,146.28,146.27,10.67]
[1749179890250,55.32205441,146.28,146.27,10.67]
[1749179890444,50.77385463,146.28,146.27,10.67]
[1749179890754,55.32213441,146.28,146.27,10.67]
[1749179890954,47.93380272,146.28,146.27,10.67]
[1749179891156,6.8341,146.27,146.26,0.04938341]
[1749179891355,15.33213874,146.27,146.26,0.04938341]
[1749179891854,15.31971576,146.27,146.26,0.04938341]
[1749179892055,15.31974916,146.27,146.26,0.04938341]
[1749179892252,17.03285277,146.27,146.26,0.04938341]
[1749179892446,24.77209505,146.27,146.26,0.04938341]
[1749179893052,24.77209522,146.27,146.26,0.04938341]
[1749179893256,13.02359574,146.27,146.26,0.04938341]
[1749179893448,13.03070755,146.27,146.26,0.04938341]
[1749179893652,5.66020272,146.27,146.26,0.04938341]
[1749179893851,13.02936409,146.27,146.26,0.04938341]
[1749179894047,13.02932546,146.27,146.26,0.04938341]
[1749179894349,13.02934961,146.27,146.26,0.04938341]
[1749179894546,19.86334961,146.27,146.26,0.04938341]
[1749179894951,12.49420272,146.27,146.26,0.04938341]
[1749179895152,19.85205506,146.27,146.26,0.04938341]
[1749179895345,17.02843517,146.27,146.26,0.04938341]
[1749179895752,19.85213556,146.27,146.26,0.04938341]
[1749179896551,19.85205354,146.27,146.26,0.04938341]
[1749179896755,17.0251716,146.27,146.26,0.04938341]
[1749179897155,19.84878997,146.27,146.26,0.04938341]
[1749179897356,19.84870945,146.27,146.26,0.04938341]
[1749179898562,19.84492799,146.27,146.26,0.04938341]
[1749179898764,19.84455903,146.27,146.26,0.04938341]
[1749179898957,15.31397286,146.27,146.26,0.04938341]
[1749179899263,19.84429853,146.27,146.26,0.04938341]
[1749179900463,19.84385258,146.27,146.26,0.04938341]
[1749179900664,15.3138029,146.27,146.26,0.04938341]
[1749179900864,19.84390264,146.27,146.26,0.04938341]
[1749179901062,19.8439167,146.27,146.26,0.04938341]
[1749179902263,10.1899227,146.27,146.26,0.04938341]
[1749179902570,8.476571,146.27,146.26,0.04938341]
[1749179902866,15.310671,146.27,146.26,0.04938341]
[1749179903255,12.49430272,146.27,146.26,0.04938341]
[1749179903465,15.31044847,146.27,146.26,0.04938341]
[1749179903966,12.49430272,146.27,146.26,0.04938341]
[1749179904265,15.31046778,146.27,146.26,0.04938341]
[1749179905666,15.31049266,146.27,146.26,0.04938341]
[1749179906163,15.31050935,146.27,146.26,0.04938341]
[1749179906366,15.3098144,146.27,146.26,0.04938341]
[1749179907168,15.3162101,146.27,146.26,0.04938341]
[1749179907366,12.49430272,146.27,146.26,0.04938341]
[1749179908471,6.8341,146.27,146.26,0.04938341]
[1749179908867,15.3222266,146.27,146.26,0.04938341]
[1749179909167,15.32222651,146.27,146.26,0.04938341]
[1749179909361,12.49995826,146.27,146.26,0.04938341]
[1749179909866,15.32224627,146.27,146.26,0.04938341]
[1749179910265,15.3218658,146.27,146.26,0.04938341]
[1749179910972,12.49995826,146.27,146.26,0.04938341]
[1749179912370,15.32520294,146.27,146.26,0.04938341]
[1749179912575,12.49995826,146.27,146.26,0.04938341]
[1749179915779,15.32655825,146.27,146.26,0.04938341]
[1749179916271,15.32669817,146.27,146.26,0.04938341]
[1749179916673,15.32668736,146.27,146.26,0.04938341]
[1749179916976,19.85555911,146.27,146.26,0.04938341]
[1749179917776,17.02877473,146.27,146.26,0.04938341]
[1749179917979,19.85326095,146.27,146.26,0.04938341]
[1749179918179,15.32599071,146.27,146.26,0.04938341]
[1749179918374,19.8588455,146.27,146.26,0.04938341]
[1749179918976,19.85883861,146.27,146.26,0.04938341]
[1749179919175,55.01883861,146.27,146.26,0.04938341]
[1749179919476,55.01928047,146.27,146.26,0.04938341]
[1749179919779,55.03175341,146.27,146.26,0.04938341]
[1749179920076,47.65995826,146.27,146.26,0.04938341]
[1749179920272,52.206116,146.27,146.26,0.04938341]
[1749179920578,55.03726819,146.27,146.26,0.04938341]
[1749179921477,55.04186117,146.27,146.26,0.04938341]
[1749179921677,50.49118081,146.27,146.26,0.04938341]
[1749179922078,55.04517418,146.27,146.26,0.04938341]
[1749179922679,50.49118081,146.27,146.26,0.04938341]
[1749179923278,50.49653473,146.27,146.26,0.04938341]
[1749179923478,55.05099759,146.27,146.26,0.04938341]
[1749179924782,55.052855,146.27,146.26,0.04938341]
[1749179924990,55.06474407,146.27,146.26,0.04938341]
[1749179925185,43.66428273,146.27,146.26,0.04938341]
[1749179925387,45.73535301,146.27,146.26,8.341e-05]
[1749179925583,53.14119131,146.27,146.26,8.341e-05]
[1749179925784,6.8364,146.22,146.21,3.61]
[1749179926088,55.06809656,146.22,146.21,3.61]
[1749179926390,55.0658242,146.22,146.21,3.61]
[1749179926692,52.22535646,146.22,146.21,3.61]
[1749179926882,50.50016272,146.22,146.21,3.61]
[1749179927083,55.06457633,146.22,146.21,3.61]
[1749179927287,55.05832708,146.22,146.21,3.61]
[1749179927684,55.05863982,146.22,146.21,3.61]
[1749179927892,55.05864754,146.22,146.21,3.61]
[1749179928085,55.05847688,146.22,146.21,3.61]
[1749179928285,55.05847985,146.22,146.21,3.61]
[1749179928488,50.49399012,146.22,146.21,3.61]
[1749179928678,55.05845715,146.22,146.21,3.61]
[1749179928884,55.05846453,146.22,146.21,3.61]
[1749179929184,55.06006555,146.22,146.2,0.0524273]
[1749179929390,19.90046555,146.21,146.2,0.0524273]
[1749179929788,19.87622516,146.21,146.2,0.0524273]
[1749179929989,19.87345809,146.21,146.2,0.0524273]
[1749179930190,19.87212059,146.21,146.2,0.0524273]
[1749179930687,19.87211985,146.21,146.2,0.0524273]
[1749179930889,21.72745362,146.21,146.2,0.0524273]
[1749179931084,26.26667553,146.21,146.2,0.0524273]
[1749179931783,23.43589959,146.21,146.2,0.0524273]
[1749179931983,26.26664082,146.21,146.2,0.0524273]
[1749179932185,23.43743805,146.21,146.2,0.0524273]
[1749179932394,21.71538911,146.21,146.2,0.0524273]
[1749179932590,26.25541378,146.21,146.2,0.0524273]
[1749179932787,26.25502181,146.21,146.2,0.0524273]
[1749179932994,26.25481547,146.21,146.2,0.0524273]
[1749179933789,26.22072398,146.21,146.2,0.0524273]
[1749179933993,26.3653402,146.21,146.2,0.0524273]
[1749179934295,23.55215268,146.21,146.2,0.0524273]
[1749179934593,26.36485743,146.21,146.2,0.0524273]
[1749179934995,26.3636928,146.21,146.2,0.0524273]
[1749179935195,23.55149818,146.21,146.2,0.0524273]
[1749179935396,26.36377642,146.21,146.2,0.0524273]
[1749179935595,23.55149818,146.21,146.2,0.0524273]
[1749179935797,21.85380786,146.21,146.2,0.0524273]
[1749179935992,26.3570235,146.21,146.2,0.0524273]
[1749179936197,19.97654317,146.21,146.2,0.0524273]
[1749179936496,19.97651411,146.21,146.2,0.0524273]
[1749179937397,12.66104929,146.21,146.2,0.0524273]
[1749179937599,15.46149855,146.21,146.2,0.0524273]
[1749179937793,19.96111044,146.21,146.2,2.73e-05]
[1749179937994,19.96112892,146.21,146.2,2.73e-05]
[1749179938792,19.95553281,146.21,146.2,2.73e-05]
[1749179939190,17.15506507,146.21,146.2,2.73e-05]
[1749179939391,19.95330698,146.21,146.2,2.73e-05]
[1749179939996,19.95313711,146.21,146.2,2.73e-05]
[1749179940700,19.95304749,146.21,146.2,2.73e-05]
[1749179941000,19.95195049,146.21,146.2,2.73e-05]
[1749179941501,19.95192822,146.21,146.2,2.73e-05]
[1749179941996,19.95082235,146.21,146.2,2.73e-05]
[1749179942400,19.94904394,146.21,146.2,2.73e-05]
[1749179942601,15.45890699,146.21,146.2,2.73e-05]
[1749179942797,19.94902724,146.21,146.2,2.73e-05]
[1749179942997,12.66104929,146.21,146.2,2.73e-05]
[1749179943197,19.94756342,146.21,146.2,2.73e-05]
[1749179944196,28.44052577,146.21,146.2,2.73e-05]
[1749179944397,31.23852614,146.21,146.2,2.73e-05]
[1749179944594,31.22021445,146.21,146.2,2.73e-05]
[1749179944797,31.22021441,146.21,146.2,2.73e-05]
[1749179944997,31.22021668,146.21,146.2,2.73e-05]
[1749179945500,31.21517342,146.21,146.2,2.73e-05]
[1749179945694,24.84999666,146.21,146.2,2.73e-05]
[1749179946095,31.21517342,146.21,146.2,2.73e-05]
[1749179946300,31.21460771,146.21,146.2,2.73e-05]
[1749179946493,17.56798786,146.21,146.2,2.73e-05]
[1749179946797,31.21415802,146.21,146.2,2.73e-05]
[1749179946991,24.84898126,146.21,146.2,2.73e-05]
[1749179947392,19.93909573,146.21,146.2,2.73e-05]
[1749179947599,19.93727986,146.21,146.2,2.73e-05]
[1749179947801,19.93726367,146.21,146.2,2.73e-05]
[1749179948004,19.93319836,146.21,146.2,2.73e-05]
[1749179948201,19.93318663,146.21,146.2,2.73e-05]
[1749179948499,19.93267457,146.21,146.2,2.73e-05]
[1749179948902,19.93267279,146.21,146.2,2.73e-05]
[1749179949102,19.93279822,146.21,146.2,2.73e-05]
[1749179949405,19.93280171,146.21,146.2,2.73e-05]
[1749179949604,15.44890908,146.21,146.2,2.73e-05]
[1749179949799,12.65810233,146.21,146.2,2.73e-05]
[1749179950198,5.82130233,146.21,146.2,2.73e-05]
[1749179950699,12.65810233,146.21,146.2,2.73e-05]
[1749179954098,24.85883461,146.21,146.2,2.73e-05]
[1749179954497,20.36687947,146.21,146.2,2.73e-05]
[1749179954801,24.86092023,146.21,146.2,2.73e-05]
[1749179955098,24.86097075,146.21,146.2,2.73e-05]
[1749179955303,24.86096304,146.21,146.2,2.73e-05]
[1749179955505,24.86102067,146.21,146.2,2.73e-05]
[1749179955698,24.86103299,146.21,146.2,2.73e-05]
[1749179956097,24.86938696,146.21,146.2,2.73e-05]
[1749179956303,17.56798786,146.21,146.2,2.73e-05]
[1749179956607,24.86938899,146.21,146.2,2.73e-05]
[1749179956799,20.36717407,146.21,146.2,2.73e-05]
[1749179957000,22.07040373,146.21,146.2,2.73e-05]
[1749179957205,24.86958384,146.21,146.2,2.73e-05]
[1749179957808,17.56798786,146.21,146.2,2.73e-05]
[1749179958002,22.07160979,146.21,146.2,2.73e-05]
[1749179958207,20.36476002,146.21,146.2,2.73e-05]
[1749179958408,24.86830916,146.21,146.2,2.73e-05]
[1749179958609,17.56798786,146.21,146.2,2.73e-05]
[1749179958809,24.86829361,146.21,146.2,2.73e-05]
[1749179959206,22.06018399,146.21,146.2,2.73e-05]
[1749179959412,24.85688336,146.21,146.2,2.73e-05]
[1749179959610,22.06018399,146.21,146.2,2.73e-05]
[1749179959812,24.85688336,146.21,146.2,2.73e-05]
[1749179960513,31.22206012,146.21,146.2,2.73e-05]
[1749179960812,31.22216713,146.21,146.2,2.73e-05]
[1749179961011,24.85699037,146.21,146.2,2.73e-05]
[1749179961205,31.21965366,146.21,146.2,2.73e-05]
[1749179961408,24.8544769,146.21,146.2,2.73e-05]
[1749179961610,28.42983475,146.21,146.2,2.73e-05]
[1749179961811,28.42981299,146.21,146.2,2.73e-05]
[1749179962010,24.85805429,146.21,146.2,2.73e-05]
[1749179962206,31.22771442,146.21,146.2,2.73e-05]
[1749179962511,31.22950366,146.21,146.2,2.73e-05]
[1749179962711,20.36926581,146.21,146.2,2.73e-05]
[1749179962901,31.22726211,146.21,146.2,2.73e-05]
[1749179963105,20.36609216,146.21,146.2,2.73e-05]
[1749179963302,17.57137163,146.21,146.2,2.73e-05]
[1749179963608,31.22733583,146.21,146.2,2.73e-05]
[1749179964114,24.85308585,146.21,146.2,2.73e-05]
[1749179964418,24.85742354,146.21,146.2,2.73e-05]
[1749179964713,28.43132155,146.21,146.2,2.73e-05]
[1749179964909,31.22819241,146.21,146.2,2.73e-05]
[1749179965111,26.31830688,146.21,146.2,2.73e-05]